[Event "SixDays Budapest GM-C 09-2024"]
[Site "Budapest"]
[Date "2024.09.24"]
[Round "1.3"]
[White "Gatineau, Yovann"]
[Black "Susilodinata, Andrean"]
[Result "1-0"]
[ECO "D37"]
[WhiteElo "2400"]
[BlackElo "2393"]
[Annotator "TA"]
[PlyCount "83"]
[EventDate "2024.09.24"]
[EventType "tourn"]
[EventCountry "HUN"]
[SourceTitle "playchess.com"]
[Source "ChessBase"]
[SourceQuality "1"]
[TimeControl "5400+30"]

{[%evp 15,83,9,20,22,10,12,31,25,10,10,78,72,108,112,130,128,143,143,143,137,138,141,143,139,149,133,135,150,165,154,224,213,226,194,254,260,254,247,244,259,312,309,320,322,322,300,393,395,351,352,508,492,530,559,552,481,763,622,1145,1053,1159,1160,1266,5069,29961,29962,29989,29990,29990,29991]} 1. d4 {[%emt 0:00:02]} d5 {[%emt 0:00:05]} 2. c4 {[%emt 0:00:05]} e6 {[%emt 0:00:03]} 3. Nf3 {[%emt 0:00:12]} Nf6 {[%emt 0:00:02]} 4. Nc3 {[%emt 0:00:08][%cal Bb1c3,Bc3d1,Bd1e3][%mdl 32]} Be7 {[%emt 0:00:10]} 5. g3 {[%emt 0:03:02]} dxc4 {[%emt 0:03:18]} 6. Bg2 {[%emt 0:04:37]} O-O {[%emt 0:00:51]} 7. Ne5 {[%emt 0:00:39]} c5 {[%emt 0:03:53]} 8. dxc5 {[%emt 0:00:56]} Qxd1+ {[%emt 0:01:34]} 9. Nxd1 {[%emt 0:00:07]} Bxc5 {[%emt 0:00:05]} 10. Ne3 {[%emt 0:07:05] Prevents Nd5} Nc6 11. Bxc6 {[%emt 0:18:43] White is slightly better.} (11. N5xc4 Bd7 $15) 11... bxc6 {[%emt 0:14:20]} 12. N3xc4 {[%emt 0:00:16][%cal Oc1e3]} Ne4 {[%emt 0:06:38]} (12... Ba6 $11 {remains equal.}) 13. f3 $16 {[%emt 0:10:47]} Nf6 {[%emt 0:05:02][%cal Be4f6,Bf6d5,Bd5e3][%mdl 32]} 14. Be3 $1 {[%emt 0:05:06]} (14. Nxc6 Nd5 $14) 14... Bb4+ {[%emt 0:01:20]} 15. Kf2 {[%emt 0:03:27] White has more active pieces. The black rooks are passive.} Nd5 {[%emt 0:02:11]} 16. Nxc6 {[%emt 0:02:02]} Nxe3 {[%emt 0:01:09]} 17. Nxe3 {[%emt 0:00:23] A dynamic duo of knights.} Bc5 {[%emt 0:00:05]} 18. Rhc1 {[%emt 0:16:43]} Bb6 {[%emt 0:00:07]} 19. b4 {[%emt 0:04:15]} Bb7 {[%emt 0:03:35]} 20. a4 $1 $36 {[%emt 0:01:09][%mdl 2048] White has strong initiative.} Bxc6 {[%emt 0:04:33]} 21. Rxc6 {[%emt 0:00:08]} e5 {[%emt 0:21:33]} 22. Ra3 {[%emt 0:02:26]} Rfd8 {[%emt 0:00:14]} (22... Rac8 $16 {might work better.} 23. Rxc8 Rxc8) 23. Ke1 $18 {[%emt 0:02:33]} h5 {[%emt 0:02:16]} 24. h4 {[%emt 0:02:35]} Rac8 {[%emt 0:04:10]} (24... e4 {was necessary.} 25. Nc4 (25. fxe4 Bxe3 26. Rxe3 Rd4 $16) 25... Bd4 26. fxe4 Rac8) 25. Rxc8 {[%emt 0:01:05]} Rxc8 {[%emt 0:00:01][%mdl 4096] Endgame. KRB-KRN} 26. Nd5 {[%emt 0:00:15]} Bd8 {[%emt 0:00:48] Dodges Ne7+} 27. Kd2 {[%emt 0:05:53]} f6 {[%emt 0:03:06][%cal Bf7f6,Bf6f5][%mdl 32]} 28. Rc3 {[%emt 0:00:57]} Rb8 {[%emt 0:00:26]} 29. Kd3 {[%emt 0:00:47]} f5 {[%emt 0:00:52]} 30. Rc6 {[%emt 0:01:01]} Kf7 {[%emt 0:00:26]} 31. b5 {[%emt 0:01:07]} Rb7 {[%emt 0:00:37]} 32. e4 {[%emt 0:01:27]} Rd7 {[%emt 0:00:36]} (32... fxe4+ {is a better defense.} 33. Kxe4 Ba5) 33. Kc4 {[%emt 0:01:20]} fxe4 {[%emt 0:00:54]} 34. fxe4 {[%emt 0:00:04]} Ba5 {[%emt 0:00:03]} 35. Rc8 {[%emt 0:02:27]} Be1 {[%emt 0:00:34]} (35... Bb6 $142 36. Rh8 Bf2 37. Rxh5 (37. a5 Kg6 $18) 37... Bxg3) 36. Kc5 {[%emt 0:01:02] aiming for Kc6.} Kg6 {[%emt 0:00:34]} 37. Kc6 {[%emt 0:02:37]} Rf7 {[%emt 0:00:02]} 38. Rc7 {[%emt 0:00:32]} Bxg3 {[%emt 0:00:37]} 39. Rxf7 {[%emt 0:00:28]} (39. Ne7+ Kh7 $18) 39... Kxf7 {[%emt 0:00:01] [#]} 40. a5 $1 {[%emt 0:00:12][%cal Ba4a5,Ba5a6][%mdl 32] White mates.} ({Inferior is} 40. Kb7 g5 41. Kxa7 (41. hxg5 h4 $11) 41... Bf2+ 42. b6 gxh4 $11) 40... g5 {[%emt 0:01:06]} 41. b6 {[%emt 0:00:15]} axb6 {[%emt 0:00:08] [#]} 42. a6 $1 {[%emt 0:00:10] Black did not feel at home in the position after the opening.   Weighted Error Value: White=0.04 (flawless) /Black=0.27 (precise) .  Mistake:       	---       	Black=5      Inaccurate:     	---       	Black=3      OK:         	White=13    	Black=9      Best:        	White=2     	---        Strong:       	White=2     	---} 1-0

[Event "SixDays Budapest GM-C 09-2024"]
[Site "Budapest"]
[Date "2024.09.24"]
[Round "1.4"]
[White "Gretarsson, Helgi Ass"]
[Black "Sardana, Rishi"]
[Result "1-0"]
[ECO "D37"]
[WhiteElo "2450"]
[BlackElo "2477"]
[Annotator "TA"]
[PlyCount "91"]
[EventDate "2024.09.24"]
[EventType "tourn"]
[EventCountry "HUN"]
[SourceTitle "playchess.com"]
[Source "ChessBase"]
[SourceQuality "1"]
[TimeControl "5400+30"]

{[%evp 10,91,18,22,41,21,35,35,26,11,25,28,47,35,62,56,60,69,68,55,83,74,81,42,50,39,108,92,116,97,145,145,154,151,159,158,326,325,332,265,250,252,323,306,314,287,314,302,412,410,419,424,440,418,410,419,502,487,513,505,530,544,591,457,488,443,456,443,543,530,624,621,780,773,763,792,770,782,768,780,1813,1705,2077,1989]} 1. d4 {[%emt 0:00:03]} Nf6 {[%emt 0:00:07]} 2. c4 {[%emt 0:00:04]} e6 {[%emt 0:00:04]} 3. Nf3 {[%emt 0:00:04]} d5 {[%emt 0:00:06]} 4. Nc3 {[%emt 0:00:05]} Nbd7 {[%emt 0:00:06]} 5. Bf4 {[%emt 0:00:10]} Bb4 {[%emt 0:00:30]} 6. cxd5 {[%emt 0:00:18] D37: Queen's Gambit Declined: 5 Bf4.} Nxd5 {[%emt 0:03:04]} 7. Bd2 {[%emt 0:00:20]} N5f6 {[%emt 0:00:10]} 8. Qc2 {[%emt 0:06:21]} c5 {[%emt 0:07:30]} 9. a3 $146 {[%emt 0:00:35]} ({Predecessor:} 9. e3 cxd4 10. Nxd4 O-O 11. Be2 Ne5 12. O-O Bd7 13. Rad1 Rc8 14. Qb3 Qe7 15. a3 Bxc3 16. Bxc3 {1-0 Haydon,D (2230)-Michalczak,T (2231) Titled Tuesday intern op 11th Jul Late blitz 2023 (7)}) 9... Bxc3 $1 {[%emt 0:06:02]} 10. Bxc3 {[%emt 0:00:36]} b6 {[%emt 0:04:27]} 11. dxc5 {[%emt 0:01:05]} bxc5 {[%emt 0:01:42]} 12. e4 {[%emt 0:30:16]} Bb7 {[%emt 0:12:34]} 13. Nd2 {[%emt 0:05:37]} O-O {[%emt 0:00:41]} 14. Be2 {[%emt 0:01:36]} Qc7 {[%emt 0:07:45]} 15. O-O {[%emt 0:00:13]} Ne5 {[%emt 0:07:00]} 16. Rad1 {[%emt 0:16:47]} Rfd8 {[%emt 0:01:11]} 17. f3 {[%emt 0:04:51]} Rac8 {[%emt 0:06:23]} (17... Nfd7 $1 $14) 18. Nb3 $16 {[%emt 0:02:33]} Rxd1 {[%emt 0:00:47]} 19. Rxd1 {[%emt 0:00:06]} (19. Bxd1 $6 Ba6 20. Be2 Bxe2 21. Qxe2 c4 $11) 19... c4 {[%emt 0:16:21]} (19... h6 $142) 20. Bxe5 $1 $16 {[%emt 0:07:39]} Qxe5 {[%emt 0:00:08] [#]} 21. Qxc4 $1 {[%emt 0:00:08]} ({Of course not} 21. Bxc4 $6 h5 22. Qe2 h4 $11) 21... h5 {[%emt 0:01:19]} ({Not} 21... Qxb2 22. Qxc8+ Bxc8 23. Rd8+) 22. Qb5 {[%emt 0:02:46]} Qxb2 $2 {[%emt 0:06:19]} (22... Qc7 $16 {was worth a try.} 23. Rc1 Qb8 24. Rxc8+ Qxc8) 23. Qxb7 $18 {[%emt 0:00:26]} Rc3 {[%emt 0:01:14]} 24. Qa8+ {[%emt 0:02:09]} Kh7 {[%emt 0:00:04] [#]} 25. Nd2 $1 {[%emt 0:00:14]} Rc1 {[%emt 0:12:07]} 26. Rxc1 {[%emt 0:06:14]} Qxc1+ {[%emt 0:03:29]} 27. Nf1 {[%emt 0:00:05]} Qc5+ {[%emt 0:00:12]} 28. Kh1 {[%emt 0:00:01]} Qf2 {[%emt 0:00:42]} 29. Bd3 {[%emt 0:02:32]} Qd4 {[%emt 0:00:30]} 30. Bb5 {[%emt 0:00:06]} h4 {[%emt 0:01:10]} 31. Qc6 {[%emt 0:03:49]} h3 {[%emt 0:00:50]} 32. gxh3 {[%emt 0:00:12]} Qf2 {[%emt 0:00:39]} 33. Qc3 {[%emt 0:00:15]} Nh5 {[%emt 0:00:11]} 34. Qe3 {[%emt 0:01:14]} Qb2 {[%emt 0:00:09]} 35. a4 {[%emt 0:06:22]} e5 {[%emt 0:00:20]} 36. Ng3 {[%emt 0:00:19]} Nf4 {[%emt 0:00:16]} 37. Bf1 {[%emt 0:00:05]} (37. Qxa7 $2 Qg2#) 37... a5 {[%emt 0:01:37]} 38. Ne2 {[%emt 0:02:07]} Ne6 {[%emt 0:00:24]} 39. Qc3 {[%emt 0:00:35]} Qb1 {[%emt 0:00:39]} 40. Kg2 {[%emt 0:00:25]} f6 {[%emt 0:00:39]} 41. Qxa5 {[%emt 0:00:29]} Qc2 {[%emt 0:00:49]} 42. Kg1 {[%emt 0:00:59]} Ng5 {[%emt 0:00:17]} 43. Kf2 {[%emt 0:00:06]} Qb3 {[%emt 0:00:31]} 44. Bg2 {[%emt 0:00:10]} Qa2 {[%emt 0:00:25]} 45. h4 {[%emt 0:00:28]} Ne6 {[%emt 0:00:37]} 46. Qd5 {[%emt 0:00:05]} 1-0

[Event "SixDays Budapest GM-C 09-2024"]
[Site "Budapest"]
[Date "2024.09.24"]
[Round "1.5"]
[White "Grover, Sahaj"]
[Black "Palczert, Matyas"]
[Result "1-0"]
[ECO "C77"]
[WhiteElo "2496"]
[BlackElo "2345"]
[Annotator "TA"]
[PlyCount "79"]
[EventDate "2024.09.24"]
[EventType "tourn"]
[EventCountry "HUN"]
[SourceTitle "playchess.com"]
[Source "ChessBase"]
[SourceQuality "1"]
[TimeControl "5400+30"]

{[%evp 13,79,-3,0,3,5,2,9,16,10,0,0,0,0,0,13,0,0,0,37,26,15,21,43,13,20,1,12,6,8,10,24,0,27,24,25,20,20,2,54,59,55,33,38,31,35,26,61,51,62,66,104,115,183,189,175,119,175,129,230,202,451,460,550,569,508,516,626,505]} 1. e4 {[%emt 0:02:59]} e5 {[%emt 0:00:16]} 2. Nf3 {[%emt 0:00:09]} Nc6 {[%emt 0:00:07]} 3. Bb5 {[%emt 0:00:05][%cal Bf1b5,Bb5a4,Ba4b3][%mdl 32]} a6 {[%emt 0:00:08]} 4. Ba4 {[%emt 0:00:07]} Nf6 {[%emt 0:00:20]} 5. d3 {[%emt 0:00:15]} b5 {[%emt 0:00:33]} 6. Bb3 {[%emt 0:00:06]} Bc5 {[%emt 0:00:36]} 7. c3 {[%emt 0:00:07]} d6 {[%emt 0:01:42]} 8. Nbd2 {[%emt 0:00:07]} O-O {[%emt 0:01:49]} 9. Nf1 {[%emt 0:00:43]} Ne7 {[%emt 0:06:50]} 10. Ng3 {[%emt 0:05:09] The position is equal.} Ng6 {[%emt 0:01:00]} 11. a4 {[%emt 0:04:43]} Bb7 {[%emt 0:04:58]} 12. O-O {[%emt 0:02:13]} Bb6 {[%emt 0:02:10]} 13. Re1 {[%emt 0:17:39]} Re8 {[%emt 0:04:46]} 14. d4 {[%emt 0:08:32]} h6 {[%emt 0:05:14]} 15. Bc2 {[%emt 0:00:31]} d5 {[%emt 0:17:53]} 16. Nxe5 {[%emt 0:13:38]} Nxe5 {[%emt 0:00:27]} 17. dxe5 {[%emt 0:00:06]} Nxe4 {[%emt 0:00:44]} 18. Nxe4 {[%emt 0:02:28]} (18. Be3 $5) 18... dxe4 {[%emt 0:00:26]} 19. Qh5 {[%emt 0:00:08]} (19. a5 {simplifies} Qxd1 20. Rxd1 Bc5 21. Rd7) 19... g6 {[%emt 0:05:45]} (19... e3 {is more complex.} 20. Bxe3 Qd5 21. Qg4 Qxe5 22. axb5 Bxe3 23. Rxe3 Qxb5 24. Bd3 Qb6) 20. Qxh6 {[%emt 0:02:23]} Rxe5 {[%emt 0:00:57] [#] aiming for ...Rh5.} 21. Be3 {[%emt 0:00:59]} Bxe3 {[%emt 0:14:24]} 22. fxe3 {[%emt 0:05:03]} Qg5 {[%emt 0:09:19]} (22... Rh5 $5 23. Qf4 $8 Qe7 $15) 23. Qxg5 {[%emt 0:00:36]} Rxg5 {[%emt 0:00:05]} 24. Red1 {[%emt 0:00:07]} Rd5 {[%emt 0:03:25]} 25. Bb3 {[%emt 0:07:42]} (25. Bxe4 $2 {perishes.} Rxd1+ 26. Rxd1 Bxe4 $19) 25... Rxd1+ {[%emt 0:04:17]} (25... Rd3 $11) 26. Rxd1 $11 {[%emt 0:00:08][%mdl 4096] [#] Endgame. And now axb5 would win. KRB-KRB} Bc6 {[%emt 0:00:28]} 27. axb5 {[%emt 0:04:51]} axb5 {[%emt 0:01:06]} 28. h4 {[%emt 0:01:39]} Kg7 {[%emt 0:01:12]} 29. Kf2 {[%emt 0:00:23]} Be8 {[%emt 0:03:05]} 30. Kg3 {[%emt 0:02:09]} f5 {[%emt 0:02:45][%cal Ob5b4]} 31. Kf4 {[%emt 0:00:33]} c5 {[%emt 0:01:25]} 32. Be6 {[%emt 0:00:50] White is more active.} Kf6 {[%emt 0:03:13]} (32... Kf8 $16) 33. Rd6 $18 {[%emt 0:00:15] Hoping for Bd5+.} Ke7 {[%emt 0:00:18]} 34. Ke5 {[%emt 0:02:52]} (34. Rb6 $18) 34... Ra7 {[%emt 0:04:17]} (34... f4 $16 {was worth a try.}) 35. Bd5 {[%emt 0:01:25]} (35. Rb6 $18) 35... c4 {[%emt 0:00:43]} (35... Bf7 $16 {was called for.}) 36. Rb6 {[%emt 0:00:52]} Kd7 $2 {[%emt 0:01:14]} (36... Kf8 37. Rb8 Re7+ 38. Kf4 (38. Kf6 f4 $15) 38... Kg7) 37. Rxb5 {[%emt 0:04:06] White is clearly winning.} Kc7 {[%emt 0:00:07]} 38. Rb4 {[%emt 0:00:06]} Ra5 {[%emt 0:00:08] ...Bc6 would now be deadly.} 39. Rxc4+ {[%emt 0:00:13]} Kd7 {[%emt 0:00:19]} 40. Rb4 {[%emt 0:00:11] Weighted Error Value: White=0.09 (flawless) /Black=0.31.  Mistake:       	White=2     	Black=5      Inaccurate:     	White=1     	Black=4      OK:         	White=13    	Black=8      Best:        	White=2     	---} 1-0

[Event "SixDays Budapest GM-C 09-2024"]
[Site "Budapest"]
[Date "2024.09.25"]
[Round "2.1"]
[White "Aczel, Gergely"]
[Black "Palczert, Matyas"]
[Result "1-0"]
[ECO "A15"]
[WhiteElo "2460"]
[BlackElo "2345"]
[Annotator "TA"]
[PlyCount "53"]
[EventDate "2024.09.24"]
[EventType "tourn"]
[EventCountry "HUN"]
[SourceTitle "playchess.com"]
[Source "ChessBase"]
[SourceQuality "1"]
[TimeControl "5400+30"]

{[%evp 9,53,15,36,44,34,27,47,50,56,46,41,52,53,48,59,45,83,89,83,103,144,137,248,244,362,334,641,637,616,644,734,728,1843,2080,2048,709,756,0,2090,1193,2059,2106,2254,2186,29988,29988]} 1. c4 {[%emt 0:14:25]} Nf6 {[%emt 0:00:16]} 2. a3 {[%emt 0:00:39]} e6 {[%emt 0:02:07]} 3. Nc3 {[%emt 0:00:13]} d5 {[%emt 0:01:46]} 4. d4 {[%emt 0:00:06]} h6 {[%emt 0:02:20]} 5. Nf3 {[%emt 0:00:45]} Be7 {[%emt 0:06:48]} 6. Bf4 {[%emt 0:00:08]} O-O {[%emt 0:00:36]} 7. e3 {[%emt 0:00:05]} dxc4 {[%emt 0:04:42]} 8. Bxc4 {[%emt 0:00:14] White is slightly better.} a6 {[%emt 0:00:25]} 9. Qc2 {[%emt 0:42:35]} b5 {[%emt 0:03:01]} 10. Bd3 {[%emt 0:00:08]} Bb7 {[%emt 0:01:45]} 11. Ne4 {[%emt 0:00:20]} Nd5 {[%emt 0:01:37]} 12. Bg3 {[%emt 0:10:04]} Nd7 {[%emt 0:03:41]} 13. O-O {[%emt 0:00:13] White is more active.} f5 {[%emt 0:08:53]} 14. Nc5 {[%emt 0:04:55]} Nxc5 {[%emt 0:02:43]} 15. dxc5 {[%emt 0:00:02]} c6 {[%emt 0:10:56]} (15... Bc6 $16 16. Rad1 b4) 16. e4 $18 {[%emt 0:04:56]} f4 {[%emt 0:05:58]} (16... fxe4 $142 17. Bxe4 Bc8) 17. exd5 {[%emt 0:00:05]} Qxd5 {[%emt 0:00:59] [#]} (17... fxg3 18. d6 (18. fxg3 Qxd5 19. b4 Kh8 $18) (18. dxe6 gxh2+ 19. Nxh2 Qd4 $18) (18. hxg3 exd5 19. Ne5 Bf6 $18) 18... gxh2+ 19. Nxh2 Bg5) 18. Rad1 $1 {[%emt 0:00:33] And now Bh7+ would win.} Qxc5 {[%emt 0:02:02] [#]} (18... Kh8 19. Nh4) 19. Qe2 {[%emt 0:00:10]} Bc8 {[%emt 0:02:05] [#]} (19... Qd5 20. Bh7+) 20. Qe4 $1 {[%emt 0:05:08] White wants to mate with Qh7+.} fxg3 {[%emt 0:00:17]} (20... Rf5 21. Bxf4) 21. Qh7+ {[%emt 0:00:13]} Kf7 {[%emt 0:00:04]} 22. Qg6+ {[%emt 0:00:17]} ({Weaker is} 22. hxg3 Bf6 23. b4 Qc3 24. Bg6+ Ke7 $18) (22. Bg6+ $142 Kf6 23. Nd2 (23. hxg3 Rh8 $18) 23... gxf2+ 24. Rxf2+ Qxf2+ 25. Kxf2) 22... Kg8 {[%emt 0:00:07]} 23. Qh7+ $40 {[%emt 0:00:07][%mdl 128] White has some attack.} ({Less strong is} 23. Qxg3 Bf6 $14) (23. b4 $142 gxh2+ 24. Kh1) 23... Kf7 {[%emt 0:00:04][%cal Bg8f7,Bf7f6,Bf6e5][%mdl 32]} 24. Bg6+ {[%emt 0:00:10]} ({Not} 24. hxg3 Bf6 25. b4 Qb6 $18) 24... Kf6 {[%emt 0:00:05]} 25. Nd2 {[%emt 0:00:26] White threatens Ne4+ and mate.} gxf2+ {[%emt 0:00:47]} 26. Kh1 {[%emt 0:01:40]} Ke5 {[%emt 0:02:02] Inhibits Ne4.} 27. Ne4 {[%emt 0:01:16] Weighted Error Value: White=0.65/Black=0.75.  Mistake:       	---       	Black=3      Inaccurate:     	---       	Black=3      OK:         	White=8     	Black=2      Best:        	White=1     	---} 1-0

[Event "SixDays Budapest GM-C 09-2024"]
[Site "Budapest"]
[Date "2024.09.25"]
[Round "2.2"]
[White "Sardana, Rishi"]
[Black "Grover, Sahaj"]
[Result "1-0"]
[ECO "C55"]
[WhiteElo "2477"]
[BlackElo "2496"]
[Annotator "RC"]
[PlyCount "65"]
[EventDate "2024.09.24"]
[EventType "tourn"]
[EventCountry "HUN"]
[SourceTitle "playchess.com"]
[Source "ChessBase"]
[SourceQuality "1"]
[TimeControl "5400+30"]

1. e4 {[%emt 0:00:03]} e5 {[%emt 0:11:29]} 2. Nf3 {[%emt 0:00:06]} Nc6 {[%emt 0:00:06]} 3. Bc4 {[%emt 0:00:05]} Nf6 {[%emt 0:00:07]} 4. d3 {[%emt 0:00:03]} h6 {[%emt 0:00:06]} 5. O-O {[%emt 0:00:08]} d6 {[%emt 0:00:06]} 6. c3 {[%emt 0:00:07]} g6 {[%emt 0:01:43]} 7. d4 {[%emt 0:00:10]} Qe7 {[%emt 0:02:02]} 8. Re1 {[%emt 0:00:14]} Bg7 {[%emt 0:01:39]} 9. h3 {[%emt 0:02:42]} O-O {[%emt 0:00:45]} 10. a4 {[%emt 0:00:18]} Kh7 {[%emt 0:07:06]} 11. Nbd2 {[%emt 0:04:48]} Nd7 {[%emt 0:07:15]} 12. Nf1 {[%emt 0:04:57]} f5 {[%emt 0:02:28]} 13. exf5 {[%emt 0:09:33]} gxf5 {[%emt 0:00:56]} 14. Ng3 {[%emt 0:01:49]} Nf6 {[%emt 0:01:31]} 15. Nh4 {[%emt 0:02:53]} d5 {[%emt 0:16:45]} 16. Nhxf5 {[%emt 0:07:51]} Bxf5 {[%emt 0:03:56]} 17. Nxf5 {[%emt 0:00:12]} Qd7 {[%emt 0:01:24]} 18. Nxg7 {[%emt 0:13:42]} dxc4 {[%emt 0:00:14]} 19. dxe5 {[%emt 0:03:08]} Nxe5 {[%emt 0:03:56]} 20. Qxd7 Nfxd7 {[%emt 0:00:09]} 21. Nh5 {[%emt 0:07:10]} Rae8 {[%emt 0:01:31]} 22. Be3 {[%emt 0:02:02]} Nd3 {[%emt 0:03:45]} 23. Red1 {[%emt 0:03:47]} N7c5 {[%emt 0:00:12]} 24. Bxc5 {[%emt 0:15:30]} Nxc5 25. Rd4 Re2 {[%emt 0:03:26]} 26. Nf4 {[%emt 0:07:58]} Rxb2 {[%emt 0:01:24]} 27. Rxc4 {[%emt 0:02:24]} b6 {[%emt 0:00:00]} 28. a5 Rf7 29. g3 {[%emt 0:05:14]} Rd7 {[%emt 0:07:05]} 30. axb6 {[%emt 0:01:55]} cxb6 {[%emt 0:00:06]} 31. Rd4 {[%emt 0:02:07]} Rf7 {[%emt 0:00:30]} 32. Re1 {[%emt 0:00:33]} Rc2 {[%emt 0:08:42]} 33. Rd8 {[%emt 0:01:03]} 1-0

[Event "SixDays Budapest GM-C 09-2024"]
[Site "Budapest"]
[Date "2024.09.25"]
[Round "2.3"]
[White "Susilodinata, Andrean"]
[Black "Gretarsson, Helgi Ass"]
[Result "0-1"]
[ECO "B06"]
[WhiteElo "2393"]
[BlackElo "2450"]
[Annotator "TA"]
[PlyCount "82"]
[EventDate "2024.09.24"]
[EventType "tourn"]
[EventCountry "HUN"]
[SourceTitle "playchess.com"]
[Source "ChessBase"]
[SourceQuality "1"]
[TimeControl "5400+30"]

{[%evp 9,82,27,64,59,55,58,68,46,70,55,52,55,58,35,73,52,61,55,66,51,37,60,103,85,77,75,81,89,78,86,118,112,111,80,84,80,87,110,97,58,60,47,58,0,10,0,0,-96,-89,-252,-157,-343,-300,-307,-321,-307,-65,-72,-63,-41,0,-452,-285,-29986,-29985,-29985,-29986,-29988,-29989,-29989,-29990,-29994,-29995,-29997,-29998]} 1. d4 {[%emt 0:00:04]} g6 {[%emt 0:00:23]} 2. e4 {[%emt 0:00:06]} Bg7 {[%emt 0:00:04]} 3. Nc3 {[%emt 0:00:07]} d6 {[%emt 0:00:04]} 4. Be3 {[%emt 0:01:10]} a6 {[%emt 0:00:06]} 5. h4 {[%emt 0:00:25]} h6 {[%emt 0:00:16]} 6. Qd2 {[%emt 0:02:29]} b5 {[%emt 0:00:20]} 7. f3 {[%emt 0:01:26]} Bb7 {[%emt 0:00:12]} 8. a4 {[%emt 0:11:19] White is slightly better.} b4 {[%emt 0:08:07]} 9. Nd1 {[%emt 0:05:21][%cal Oh4h5]} a5 {[%emt 0:00:10]} 10. c3 {[%emt 0:05:55]} bxc3 {[%emt 0:00:29]} 11. Nxc3 {[%emt 0:00:08]} Nd7 {[%emt 0:01:20]} 12. Rc1 {[%emt 0:01:07]} Ngf6 {[%emt 0:17:24]} 13. d5 {[%emt 0:05:58]} c5 {[%emt 0:15:17]} 14. dxc6 {[%emt 0:00:18]} Bxc6 {[%emt 0:00:01]} 15. Nb5 {[%emt 0:00:40]} Bxb5 {[%emt 0:00:12]} 16. Bxb5 {[%emt 0:00:02]} h5 {[%emt 0:00:07]} 17. Ne2 {[%emt 0:04:43][%cal Bg1e2,Be2d4,Bd4c6][%mdl 32] Strongly threatening Nd4.} O-O {[%emt 0:00:06]} 18. Nd4 {[%emt 0:00:51]} Ne5 {[%emt 0:04:12] Black is weak on the light squares} 19. O-O {[%emt 0:00:49]} Kh7 {[%emt 0:18:23]} 20. Rfd1 {[%emt 0:25:00]} Ng8 {[%emt 0:09:12]} 21. f4 {[%emt 0:01:22]} Ng4 {[%emt 0:00:30]} 22. Nc6 {[%emt 0:00:09]} Qc7 {[%emt 0:02:23] [#]} 23. Ne5 $1 {[%emt 0:03:06]} Qd8 {[%emt 0:00:01]} (23... Qxc1 24. Rxc1) 24. Nd7 {[%emt 0:02:08] Threatens to win with Bb6.} e5 {[%emt 0:09:30][%cal Od8h4] aiming for ...Qxh4!} 25. Nxf8+ {[%emt 0:01:31]} Bxf8 {[%emt 0:00:06]} 26. g3 {[%emt 0:10:39]} (26. fxe5 Qxh4 27. exd6 Rd8) (26. Be2 $14 {was preferrable.} N8h6 27. Bxg4 Nxg4 28. g3) 26... N8f6 $11 {[%emt 0:04:36]} 27. Re1 {[%emt 0:07:21]} d5 {[%emt 0:02:05]} 28. Qe2 {[%emt 0:05:18]} (28. fxe5 $11 {keeps the balance.} Nxe4 (28... Bb4 29. Qd4 $11) 29. Qd4) 28... Nxe4 $17 {[%emt 0:01:37] A dynamic duo of knights.} (28... dxe4 $6 29. Red1 Qb8 30. fxe5 $14) (28... exf4 29. Bxf4 Nxe4 30. Rc7 $11) 29. Kg2 {[%emt 0:00:15]} (29. fxe5 $2 Nxg3 30. Qg2 Nf5 $19 (30... Qxh4 $2 31. Bd4 $19)) (29. Qf3 $17) 29... Bh6 {[%emt 0:02:30][%cal Oe4g3] ...Nxg3! would now be deadly.} 30. Bd3 $2 {[%emt 0:03:50] [#]} (30. Rf1 $17) 30... Nxg3 $1 {[%emt 0:01:23][%mdl 512]} 31. Kxg3 {[%emt 0:00:49]} Nxe3 {[%emt 0:03:21]} 32. fxe5 {[%emt 0:00:05][%cal Oe2f3]} Ng4 $2 {[%emt 0:00:20]} (32... Qe8 $19 33. Qxh5 Kg7) 33. Qf3 $15 {[%emt 0:01:15]} Qe7 $36 {[%emt 0:00:55][%mdl 2048] Black fights for an advantage.} 34. Rc6 {[%emt 0:00:45][%cal Oe5e6]} Bg7 {[%emt 0:00:29] Chess con chili.} 35. Qxd5 {[%emt 0:00:35][%mdl 8192]} (35. e6 $1 $11 f5 (35... Bxb2 $2 36. Qxf7+ Qxf7 37. exf7 $18) 36. Qf4 (36. Qxd5 $2 Rd8 $19)) 35... Rd8 {[%emt 0:01:03]} (35... Nxe5 36. Bxg6+ (36. Rxg6 fxg6 37. Bxg6+ Kxg6 $11) 36... fxg6 37. Re6 $19) 36. Qe4 {[%emt 0:00:13]} (36. Bxg6+ $19 fxg6 37. Qe6 Rd3+ (37... Bxe5+ 38. Rxe5 Rd3+ 39. Kg2 $11) 38. Kg2 Ne3+ (38... Qxh4 39. Qxg6+ Kg8 40. Qe8+ Kh7 41. Qg6+ Kg8 42. Qe8+ Kh7 43. Qg6+ $11) 39. Kg1 Qxe6 (39... Qxh4 $2 {perishes.} 40. Qxg6+ Kg8 41. Rc8+ Rd8 42. Rxd8+ Qxd8 43. Rxe3 $18) 40. Rxe6) 36... Bxe5+ {[%emt 0:00:16] Black mates.} 37. Kg2 {[%emt 0:00:51]} Qxh4 {[%emt 0:00:08]} 38. Rc2 {[%emt 0:00:23]} Qg3+ {[%emt 0:00:44]} 39. Kf1 {[%emt 0:00:01]} Rxd3 {[%emt 0:00:10]} 40. Rg2 {[%emt 0:00:12]} Rf3+ {[%emt 0:00:15]} 41. Kg1 {[%emt 0:00:01] [#]} Bd4+ $1 {[%emt 0:00:35] Weighted Error Value: White=0.53/Black=0.26 (precise) .  Loses game:     	White=3     	---        Missed win:     	---       	Black=1      Mistake:       	White=3     	---        Inaccurate:     	White=1     	Black=6      OK:         	White=10    	Black=10     Best:        	White=1     	Black=4      Brilliant:      	White=1     	---} 0-1